Cogmind - Beta 9.5 @@@ ROGUE MODE // 2020.04.07 @ 14:26:00 Player: Barleymor Result: Destroyed by G-50 Soldier with Heavy Laser Performance ------------- Evolutions (5) 2500 Regions Visited (6) 1200 Robots Destroyed (76) 380 Value Destroyed (2101) 2101 Prototype IDs (3) 60 Alien Tech Used (0) 0 Bonus (51) 51 TOTAL SCORE: 6292 Bonus ------- High Alert Combat Kills 51 Cogmind --------- Core Integrity 0/1000 Matter 20/300 Energy 100/100 System Corruption 0% Temperature Cool (9) Movement Rolling (100) Location -5/Factory Parts ------- > --- POWER (1) -------- (None) > --- PROPULSION (8) --- Armored Huge Wheel > --- UTILITY (6) ------ (None) > --- WEAPON (2) ------- (None) > --- INVENTORY (4) ---- Fission Core Gravmag System Peak State ------------ > --- POWER ------------ Light Angular Momentum Engine > --- PROPULSION ------- Aluminum Leg Aluminum Leg Aluminum Leg Aluminum Leg Aluminum Leg > --- UTILITY ---------- Large Storage Unit Sensor Array Improved Propulsion Shielding Improved Medium Armor Plating Improved Field Recycling Unit > --- WEAPON ----------- Magnetic Acceleration Cannon Heavy Rocket Launcher > --- INVENTORY -------- Nuclear Core Large Storage Unit Weapon Cycler Improved ECM Suite Improved Propulsion Shielding Field Recycling Unit Flak Gun Flak Gun [Rating: 34] Favorites ----------- Power Ion Engine Engine Ion Engine Power Core Light Nuclear Core Propulsion Aluminum Leg Leg Aluminum Leg Wheel Armored Huge Wheel Hover Unit Gravmag Array Utility Large Storage Unit Device Advanced Terrain Scanner Storage Large Storage Unit Protection Light Armor Plating Weapon Grenade Launcher Energy Gun Beam Rifle Energy Cannon Heavy Ion Cannon Ballistic Gun Assault Rifle Ballistic Cannon Flak Cannon Launcher Grenade Launcher Build | -11 -10 -9 -8 -7 -6 -5 ------- Run | Scr Mat Mat Mat Fac Fac Fac Slots Evolved 10 | . . 2 2 2 2 2 Power . | . . . . . . . Propulsion 6 | . . 2 1 1 . 2 Utility 4 | . . . 1 1 2 . Weapon . | . . . . . . . Parts Attached 87 | 7 8 29 23 9 5 6 Power 9 | 1 1 3 2 2 . . Engine 8 | 1 1 3 2 1 . . Core 1 | . . . . 1 . . Reactor . | . . . . . . . Propulsion 23 | 2 1 11 4 2 1 2 Treads . | . . . . . . . Leg 21 | 2 1 11 4 2 . 1 Wheel 1 | . . . . . . 1 Hover 1 | . . . . . 1 . Flight . | . . . . . . . Utility 18 | 2 3 3 5 3 1 1 Device 5 | 1 . . 2 1 1 . Storage 4 | 1 . 1 2 . . . Processor . | . . . . . . . Hackware . | . . . . . . . Protection 9 | . 3 2 1 2 . 1 Artifact . | . . . . . . . Weapon 37 | 2 3 12 12 2 3 3 Energy Gun 5 | . . 3 . 1 . 1 Energy Cannon 6 | . . 2 3 . . 1 Ballistic Gun 11 | 2 1 4 3 . 1 . Ballistic Cannon 4 | . . 1 1 . 1 1 Launcher 11 | . 2 2 5 1 1 . Special Weapon . | . . . . . . . Impact Weapon . | . . . . . . . Slashing Weapon . | . . . . . . . Piercing Weapon . | . . . . . . . Special Melee Weapon . | . . . . . . . Unidentified Prototypes 1 | . . . . . . 1 Parts Lost 33 | . . 12 4 2 11 4 Power 2 | . . . . 1 1 . Propulsion 16 | . . 5 4 . 5 2 Utility 6 | . . 2 . . 3 1 Weapon 9 | . . 5 . 1 2 1 Highest Loss Streak 11 | . . 6 2 2 11 3 Average Slot Usage (%) 80 | . 97 93 94 89 40 6 Engine 7 | . 14 11 9 . 2 . Leg 32 | . 27 41 40 35 15 . Device 4 | . 4 . 9 10 5 . Storage 8 | . 14 11 9 7 3 . Protection 8 | . 8 8 9 11 5 1 Energy Gun 2 | . . 7 . 1 . . Energy Cannon 3 | . . 2 9 5 . . Ballistic Gun 5 | . 14 9 1 . . . Launcher 4 | . 13 1 6 7 2 . Naked Turns 104 | . . . . . 79 25 Heaviest Build 62 | 11 15 34 53 45 62 9 Greatest Support 50 | 20 20 43 50 50 50 28 Greatest Overweight (x) 3 | . . 1 1 1 3 . Average Overweight (x) . | . . . . . . . Largest Inventory Capacity 12 | 6 6 10 12 10 10 4 Average Capacity 8 | 4 6 9 10 10 7 4 Most Carried 10 | 4 6 10 10 10 10 4 Average Carried 7 | 2 5 7 9 9 6 3 Final Capacity 10 | 6 6 10 10 10 4 4 Final Carried 10 | 2 6 10 10 10 4 2 Class Distribution -------------------- 62% | Scavenger-Mutant 37% | Mutant Dominant Class ---------------- Mutant | -10/Materials Scavenger-Mutant | -9/Materials Scavenger-Mutant | -8/Materials Scavenger-Mutant | -7/Factory Mutant | -6/Factory Mutant | -5/Factory Resources | -11 -10 -9 -8 -7 -6 -5 ----------- Run | Scr Mat Mat Mat Fac Fac Fac Matter Collected 1621 | 294 2 696 551 26 . 52 Remotely 10 | 10 . . . . . . Salvage Created 2141 | 95 22 1134 775 115 . . Parts 131 | 3 6 66 48 8 . . Haulers Intercepted . | . . . . . . . Recyclers Shooed 7 | . . 2 4 . 1 . Parts Field Recycled 5 | . . . . . 5 . Retrieved Matter 71 | . . . . . 71 . Parts Self-Destructed . | . . . . . . . Prevented . | . . . . . . . Kills | -11 -10 -9 -8 -7 -6 -5 ------- Run | Scr Mat Mat Mat Fac Fac Fac Combat Hostiles Destroyed 53 | . 3 26 16 8 . . Guns 18 | . . 18 . . . . Cannons 9 | . . . 9 . . . AOE 25 | . 3 7 7 8 . . Classes Destroyed 10 | 1 3 3 2 1 . . Worker 7 | . 2 4 . 1 . . Builder 1 | . . . . 1 . . Recycler 6 | 1 . 2 3 . . . Operator 1 | . . . 1 . . . Watcher 8 | . 1 3 4 . . . Swarmer 17 | . 3 6 4 4 . . Grunt 23 | . . 14 7 2 . . Duelist 1 | . . 1 . . . . Sentry 9 | . . 5 4 . . . Hunter 3 | . . . 1 2 . . Best Kill Streak 10 | 1 6 10 7 5 . . Combat Bots Only 7 | . 3 7 7 4 . . Max Kills in Single Turn 3 | 1 2 3 2 3 . . Gunslinging . | . . . . . . . Exploded 2 | . 1 2 2 2 . . Melee . | . . . . . . . Uniques/NPCs Destroyed . | . . . . . . . Combat | -11 -10 -9 -8 -7 -6 -5 -------- Run | Scr Mat Mat Mat Fac Fac Fac Damage Taken 6082 | . 112 1588 667 542 1444 1729 Core 1754 | . 16 177 65 69 411 1016 Absorbed by Shields . | . . . . . . . Core Remaining (%) 79 | 100 93 55 88 90 51 . Volleys Fired 189 | 6 14 90 45 21 7 6 Largest 2 | 2 2 2 2 2 2 1 Hottest 130 | 40 40 121 130 95 81 69 Shots Fired 291 | 12 15 156 64 25 13 6 Gun 181 | 12 3 149 7 . 6 4 Cannon 44 | . . . 32 4 6 2 Launcher 66 | . 12 7 25 21 1 . Special . | . . . . . . . Kinetic 120 | 12 3 80 13 . 12 . Thermal 103 | . . 69 26 4 . 4 Explosive 66 | . 12 7 25 21 1 . Electromagnetic 2 | . . . . . . 2 Robot Hit Streak 18 | 2 3 18 5 6 6 4 Robot Miss Streak 12 | 3 1 3 12 1 5 1 Penetration Max . | . . . . . . . Secondary Targets 5 | . . 5 . . . . Max Gunslinging Chain 1 | . . 1 . . . . Shots Hit Robots 172 | 5 2 113 27 10 10 5 Core Hits 161 | 2 13 56 52 26 11 1 Critical Hits 1 | . . 1 . . . . Critical Kills . | . . . . . . . Critical Parts Destroyed 1 | . . 1 . . . . Melee Attacks . | . . . . . . . Impact . | . . . . . . . Slashing . | . . . . . . . Piercing . | . . . . . . . Sneak Attacks . | . . . . . . . Combat Hostiles . | . . . . . . . Follow-up Attacks . | . . . . . . . Damage Inflicted 5415 | 36 312 2119 1643 1029 166 110 Guns 1656 | 36 29 1357 79 . 95 60 Cannons 732 | . . . 556 81 45 50 Explosions 3013 | . 283 756 1008 948 18 . Melee . | . . . . . . . Ramming 14 | . . 6 . . 8 . Kinetic 1055 | 36 29 644 206 . 140 . Thermal 1283 | . . 713 429 81 . 60 Explosive 3013 | . 283 756 1008 948 18 . Electromagnetic 50 | . . . . . . 50 Impact . | . . . . . . . Slashing . | . . . . . . . Piercing . | . . . . . . . Highest Corruption 1 | . . . . . 1 . Average Corruption 1 | . . . . . 1 . Corruption Purged . | . . . . . . . Overload Shots . | . . . . . . . Overflow Damage 26 | . 8 13 5 . . . Projectiles 5 | . . . 5 . . . Explosions 21 | . 8 13 . . . . Melee . | . . . . . . . Knockbacks 6 | . . . 5 . 1 . Impact . | . . . . . . . Kinetic 5 | . . . 4 . 1 . Secondary 1 | . . . 1 . . . Self-Inflicted Damage 147 | . 24 . 34 89 . . Shots 5 | . 1 . 1 3 . . Rammed . | . . . . . . . Targets Rammed 5 | . . 3 . . 2 . Kicked 5 | . . 3 . . 2 . Crushed . | . . . . . . . Highest Temperature 450 | . . 450 180 63 49 370 Average Temperature 74 | . . 91 44 26 24 142 Received Heat Transfer 1311 | . . 498 189 54 84 486 Effects 3 | . . 3 . . . . Energy Bleed 1 | . . 1 . . . . Interference 2 | . . 2 . . . . Siege Activations . | . . . . . . . Robots Corrupted . | . . . . . . . Combat Hostiles . | . . . . . . . Parts Fried . | . . . . . . . Impact Corruptions . | . . . . . . . Robots Melted 1 | . . 1 . . . . Combat Hostiles 1 | . . 1 . . . . Parts Melted 5 | . . 3 2 . . . Heat Transferred 2617 | . . 1766 629 111 . 111 Parts Sabotaged . | . . . . . . . Parts Stolen . | . . . . . . . Parts Stripped . | . . . . . . . Power Chain Reactions . | . . . . . . . Missiles Intercepted . | . . . . . . . Alert | -11 -10 -9 -8 -7 -6 -5 ------- Run | Scr Mat Mat Mat Fac Fac Fac Peak Influence 469 | 5 148 450 445 469 163 45 Average Influence 195 | 2 21 277 273 287 105 14 Maximum Alert Level 2 | . . 2 2 2 . . Low Security (%) 48 | 100 100 17 21 24 100 100 Level 1 45 | . . 72 67 69 . . Level 2 6 | . . 9 11 6 . . Level 3 . | . . . . . . . Level 4 . | . . . . . . . Level 5 . | . . . . . . . High Security . | . . . . . . . Max Security . | . . . . . . . Squads Dispatched 12 | . 1 2 2 4 2 1 Investigation . | . . . . . . . Extermination 1 | . . . . 1 . . Reinforcement 10 | . 1 2 1 3 2 1 Assault . | . . . . . . . Garrison 1 | . . . 1 . . . Intercept . | . . . . . . . Construction Impeded 2 | . . . . 2 . . Haulers Reinforced . | . . . . . . . Stealth | -11 -10 -9 -8 -7 -6 -5 --------- Run | Scr Mat Mat Mat Fac Fac Fac Distress Signals 6 | . 1 2 2 . 1 . Communications Jammed . | . . . . . . . Distress Signals . | . . . . . . . Times Spotted 102 | . 4 36 25 11 9 17 Peak Tracking Total 8 | . 3 6 4 4 4 8 Tactical Retreats 12 | . 1 3 1 . 1 6 Traps | -11 -10 -9 -8 -7 -6 -5 ------- Run | Scr Mat Mat Mat Fac Fac Fac Traps Triggered 3 | . 2 . 1 . . . Indirectly . | . . . . . . . Trap Hack Attempts . | . . . . . . . Triggered . | . . . . . . . Disarmed . | . . . . . . . Reprogrammed . | . . . . . . . Reused . | . . . . . . . Traps Extracted . | . . . . . . . Installed . | . . . . . . . Triggered 1 | . . . . . . 1 Machines | -11 -10 -9 -8 -7 -6 -5 ---------- Run | Scr Mat Mat Mat Fac Fac Fac Machines Disabled 9 | . 2 2 4 1 . . Max in Single Turn 1 | . 1 1 1 1 . . Machines Sabotaged . | . . . . . . . Garrisons Compromised . | . . . . . . . Overloaded Fab Kills . | . . . . . . . Fab Network Shutdowns . | . . . . . . . Hacking | -11 -10 -9 -8 -7 -6 -5 --------- Run | Scr Mat Mat Mat Fac Fac Fac Machines Accessed 17 | . 4 7 4 1 1 . Terminals 11 | . 3 4 3 . 1 . Fabricators . | . . . . . . . Repair Stations 2 | . 1 . . 1 . . Recycling Units 2 | . . 2 . . . . Scanalyzers 2 | . . 1 1 . . . Garrison Access . | . . . . . . . Total Hacks 38 | . 11 11 11 2 3 . Successful 31 | . 8 9 10 2 2 . Failed 7 | . 3 2 1 . 1 . Catastrophic . | . . . . . . . Database Lockouts . | . . . . . . . Manual . | . . . . . . . Terminals 16 | . 5 5 3 . 3 . Fabricators . | . . . . . . . Repair Stations 8 | . 6 . . 2 . . Recycling Units 2 | . . 2 . . . . Scanalyzers 12 | . . 4 8 . . . Garrison Access . | . . . . . . . Terminal Hacks 11 | . 4 3 2 . 2 . Record 1 | . . . . . 1 . Prototype ID Bank 1 | . 1 . . . . . Recycling Unit Index 1 | . . 1 . . . . Alert Level 1 | . . . 1 . . . Unreport Threat 1 | . . . 1 . . . Locate Traps 1 | . . 1 . . . . Maintenance Status 1 | . . 1 . . . . Transport Status 1 | . 1 . . . . . Investigation Status 1 | . 1 . . . . . Recall Reinforcements 1 | . . . . . 1 . Hauler Manifests 1 | . 1 . . . . . Fabricator Hacks . | . . . . . . . Repair Station Hacks 6 | . 4 . . 2 . . Scan Component 3 | . 2 . . 1 . . Repair 3 | . 2 . . 1 . . Recycling Unit Hacks 2 | . . 2 . . . . Report Inventory 2 | . . 2 . . . . Scanalyzer 12 | . . 4 8 . . . Insert Component 6 | . . 2 4 . . . Analyze 6 | . . 2 4 . . . Garrison Access Hacks . | . . . . . . . Unauthorized Hacks . | . . . . . . . Terminals . | . . . . . . . Fabricators . | . . . . . . . Repair Stations . | . . . . . . . Recycling Units . | . . . . . . . Scanalyzers . | . . . . . . . Garrison Access . | . . . . . . . Data Cores Recovered . | . . . . . . . Used . | . . . . . . . Hacking Detections 6 | . 1 2 1 1 1 . Full Trace Events . | . . . . . . . Feedback Events . | . . . . . . . Feedback Blocked . | . . . . . . . Robot Schematics Acquired . | . . . . . . . Robots Built . | . . . . . . . Matter . | . . . . . . . Time . | . . . . . . . Total Robot Build Rating . | . . . . . . . Part Schematics Acquired 6 | . . 2 4 . . . Parts Built . | . . . . . . . Matter . | . . . . . . . Time . | . . . . . . . Total Part Build Rating . | . . . . . . . Parts Repaired 3 | . 2 . . 1 . . Time 78 | . 52 . . 26 . . Parts Recycled . | . . . . . . . Recycled Matter . | . . . . . . . Retrieved Matter . | . . . . . . . Retrieved Components . | . . . . . . . Parts Scanalyzed 6 | . . 2 4 . . . Part Schematics Acquired 6 | . . 2 4 . . . Parts Damaged . | . . . . . . . Bothacking | -11 -10 -9 -8 -7 -6 -5 ------------ Run | Scr Mat Mat Mat Fac Fac Fac Used RIF Installer . | . . . . . . . Robots Hacked . | . . . . . . . Non-combat . | . . . . . . . Combat . | . . . . . . . Robot Hacks Applied . | . . . . . . . Relay Couplers Released . | . . . . . . . Robots Rewired . | . . . . . . . Allies Hacked . | . . . . . . . Hacks Repelled . | . . . . . . . Allies | -11 -10 -9 -8 -7 -6 -5 -------- Run | Scr Mat Mat Mat Fac Fac Fac Total Allies . | . . . . . . . Largest Group . | . . . . . . . Highest-Rated Group . | . . . . . . . Highest-Rated Ally . | . . . . . . . Total Orders . | . . . . . . . Ally Attacks . | . . . . . . . Total Damage . | . . . . . . . Kills . | . . . . . . . Allies Corrupted . | . . . . . . . Allies Melted . | . . . . . . . Intel | -11 -10 -9 -8 -7 -6 -5 ------- Run | Scr Mat Mat Mat Fac Fac Fac Robot Analysis Total . | . . . . . . . Derelict Logs Recovered . | . . . . . . . Drone Launches . | . . . . . . . Drone Recoveries . | . . . . . . . Exploration | -11 -10 -9 -8 -7 -6 -5 ------------- Run | Scr Mat Mat Mat Fac Fac Fac Turns Passed 4105 | 116 561 1123 976 568 420 341 Spaces Moved 2739 | 63 373 477 565 385 458 418 Core 210 | 10 . . . . 145 55 Treads . | . . . . . . . Legs 1992 | 53 373 477 565 385 129 10 Wheels 114 | . . . . . . 114 Hover 423 | . . . . . 184 239 Flight . | . . . . . . . Fastest Speed 50 | 50 120 120 120 120 50 50 Average Speed 107 | 108 120 120 129 120 79 71 Slowest Speed 200 | 120 120 150 150 150 200 120 Overloaded Moves . | . . . . . . . Propulsion Burnouts . | . . . . . . . Robots Hopped . | . . . . . . . Cave-ins Triggered . | . . . . . . . Exploration Rate (%) 30 | 5 59 51 49 14 15 17 Regions Visited 6 Branch Regions . Pre-discovered Areas . | . . . . . . . Known Exits Taken . | . . . . . . . Unknown Exits Taken 6 | 1 1 1 1 1 1 . Scrap Searched . | . . . . . . . Spaces Dug . | . . . . . . . Terrain Destroyed 318 | . 28 40 116 122 12 . Melee . | . . . . . . . Projectile 10 | . . . 6 1 3 . AOE 308 | . 28 40 110 121 9 . Actions | -11 -10 -9 -8 -7 -6 -5 --------- Run | Scr Mat Mat Mat Fac Fac Fac Total 3604 | 98 468 875 741 464 502 456 Wait 483 | 17 69 242 84 33 16 22 Move 2733 | 62 372 476 564 384 457 418 Hop . | . . . . . . . Pick Up 66 | 6 4 24 13 10 6 3 Fast Attach 15 | 3 5 3 2 . 1 1 Attach 31 | 4 . 12 3 4 3 5 Detach 1 | . . . . . 1 . Swap 41 | . 3 14 18 5 1 . Drop 40 | . 1 11 12 7 8 1 Fire 189 | 6 14 90 45 21 7 6 Melee . | . . . . . . . Ram . | . . . . . . . Kick 5 | . . 3 . . 2 . Crush . | . . . . . . . Escape Stasis . | . . . . . . . Rewire . | . . . . . . . Trap . | . . . . . . . Miscellaneous . | . . . . . . . Route ------- -11/Scrapyard -10/Materials (discovered 3 exits: *Mat x2 / [*Min]) -9/Materials (discovered 2 exits: *Mat / [*Min]) -8/Materials -7/Factory -6/Factory -5/Factory History --------- Turn | Location | Event 11 | -11/Scrapyard | Discovered new exit (range 15) 117 | -11/Scrapyard | Entered Materials 213 | -10/Materials | Discovered new exit (range 6) 223 | -10/Materials | Discovered new exit (range 15) 321 | -10/Materials | Build established: Mutant 475 | -10/Materials | Discovered new exit (range 12) 595 | -10/Materials | Repaired Lgt. Armor Plating 622 | -10/Materials | Repaired Aluminum Leg 678 | -10/Materials | Entered another Materials area 678 | -9/Materials | Evolved 2 slots: Propulsion x2 900 | -9/Materials | Destroyed 7 combat bots 959 | -9/Materials | Lost 3 parts (1n1u1w) 1027 | -9/Materials | Discovered new exit (range 9) 1441 | -9/Materials | Lost 6 parts (3n3w) 1526 | -9/Materials | Build established: Scavenger-Mutant 1670 | -9/Materials | Discovered new exit (range 13) 1801 | -9/Materials | Entered another Materials area 1801 | -8/Materials | Evolved 2 slots: Propulsion x1, Utility x1 1909 | -8/Materials | Garrison activated, responded to threat 2056 | -8/Materials | Destroyed 7 combat bots 2587 | -8/Materials | Discovered new exit (range 13) 2777 | -8/Materials | Entered Factory 2777 | -7/Factory | Evolved 2 slots: Propulsion x1, Utility x1 2887 | -7/Factory | Repaired Aluminum Leg 3332 | -7/Factory | Discovered new exit (range 12) 3345 | -7/Factory | Entered another Factory area 3345 | -6/Factory | Evolved 2 slots: Utility x2 3597 | -6/Factory | Lost 11 parts (1p5n3u2w) 3756 | -6/Factory | Discovered new exit (range 15) 3765 | -6/Factory | Entered another Factory area 3765 | -5/Factory | Evolved 2 slots: Propulsion x2 3827 | -5/Factory | Build established: Mutant 3967 | -5/Factory | Core integrity fell below 50% 3972 | -5/Factory | Lost 3 parts (2n1w) 4088 | -5/Factory | Core integrity fell below 20% 4106 | -5/Factory | Destroyed by G-50 Soldier with Heavy Laser Last Messages --------------- 03919_ Slug penetrates Wall. 03933_ Hvy. Laser destroyed. 03936_ Slug penetrates Wall. 03941_ Carbon-fiber Leg destroyed. 03943_ K-01 Serf cleans the Terminal. 03948_ Slug penetrates Wall. 03951_ Penetrated by Slug. 03968_ Acquired Arm. Huge Wheel. 04020_ Acquired Imp. EM Pulse Cannon. 04028_ Drone sends a signal. 04038_ Penetrated by Slug. 04040_ Imp. EM Pulse Cannon severed. 04042_ Penetrated by Slug. 04049_ Slug penetrates Wall. 04052_ Slug penetrates Construction Platform. 04052_ Imp. Propulsion Shielding destroyed. 04088_ U-05 Engineer destroyed. 04091_ K-01 Serf collects debris. 04093_ Penetrated by Slug. 04094_ K-01 Serf collects debris. Map ----- +----------------------------------------------------+ | ?????????????????????????????????????????????????? | | ?????????????????????????????????????????????????? | | ?????????????????????????????????????????????????? | | ?????????????????????????????????????????????????? | | ?????????????????????????????????????????????????? | | ?????????????????????????????????????????????????? | | ?????????????????????????????????????????????????? | | ?????????????????????????????????????????????????? | | ?????????????????????????????????????????????????? | | ?????????????????????????????????????????????????? | | ?????????????????????????????????????????????????? | | ?????????????????????????????????????????????????? | | ?????????????????????????????????????????????????? | | ?????????????????????????????????????????????????? | | ??????????????????????????########???????????????? | | ??????????????????????????# ???????????????? | | ??????????????????????????# ????????????????? | | ??????????????????????????# ????????????????? | | ??????????????????????????# ?????????????????? | | ??????????????????????????# ?????????????????? | | ??????????????????????????# ??????????????????? | | ??????????????????????????# ??????????????????? | | ??????????????????????????# ???????????????????? | | ??????????????????????????# ???????????????????? | | ?????????????????####+######+###########?????????? | | ?????????? kk @ #?????????? | | ?????????? #?????????? | | ?????????? #?????????? | | ??????????? k #??####?##? | | ??????????? g g #? #? | | ????????????#########+######+##### u #?""" #? | | ?????????????????????????????????# # "R #? | | ?????????????????????????????????# # """ #? | | ?????????????????????????????????# " #? | | ?????????????????????????????????# # """ #? | | ?????????????????????????????????# # """"" ?? | | ?????????????????????????????????# !!#? """"" ## | | ?????????????????????????????????# =%#? ??# | | ?????????????????????????????????# !*#??#####?#^ | | ?????????????????????????????????# #????????# | | ?????????????????????????????????# #????????# | | ?????????????????????????????????# #????????# | | ?????????????????????????????????# #????????# | | ?????????????????????????????????# #????????# | | ?????????????????????????????????# #????????# | | ?????????????????????????????????# ########### | | ?????????????????????????????????# | | ????????????????????????????? # #### | | ?????????????????????????????"" + #??? | | ??????????????????????????? # #??? | +----------------------------------------------------+ Best States ------------- Heat Dissipation 40 Energy Generation 18 Energy Capacity 265 Matter Stores 300 Matter Capacity 300 Sight Range 16 Robot Scan Range 10 Terrain Scan Range 20 Terrain Scan Density 10 Armor Coverage 225 Propulsion Shielding 66 Evasion (%) 53 Item Schematics ----------------- Lrg. Storage Unit | -9/Materials | Scanalyzed Hcp. Storage Unit | -9/Materials | Scanalyzed Grenade Launcher | -8/Materials | Scanalyzed Imp. ECM Suite | -8/Materials | Scanalyzed Lgt. Nuclear Core | -8/Materials | Scanalyzed Lgt. Armor Plating | -8/Materials | Scanalyzed Robot Schematics ------------------ None Fabricated ------------ Nothing Alien Tech Used ----------------- None Achievements -------------- Everything Is Under Control GoHome() Shopping List Challenges ------------ None Game ------ Seed DynamicAntimissileKatana Manual? 0 Play Time 01:14:41 Cumulative 17.5 hours Start 2020.04.07 @ 12:21:41 End 2020.04.07 @ 14:26:00 Sessions 3 Manual Loads 0 Difficulty Rogue Special Mode None Game No. 13 Rogue 13 Adventurer 0 Explorer 0 Win Type - Total 0 Types 0/0/0/0/0/0/0 Lore% 5 Gallery% 21 Achievement% 17 Wizard Run 0 Options --------- ASCII 0 Keyboard 0 Movement Numpad Keybinds 0 Fullscreen 1 Font 20/SmallcapsGlow Map View 66x50 Tactical HUD 1 Map Filters NONE Filters NONE Steam 1 RUN: 82de9910-c4cd-439f-87ac-915fec89fc31